bitfinex-derivatives/quotes_ETHF0:USTF0_20250626
["timestamp","ask_amount","ask_price","bid_price","bid_amount"]
[1750910695842,0.80449,2484.7,2484.4,46.387]
[1750910696050,0.80446,2484.8,2484.5,6.873]
[1750910696246,2.19414,2484.9,2484.6,0.80448]
[1750910696447,0.80445,2484.8,2484.5,7.67752]
[1750910696745,3.2078,2485.0,2484.5,6.873]
[1750910696944,3.2078,2485.0,2484.9,0.80441]
[1750910697246,1.3897,2485.4,2484.9,7.67741]
[1750910697247,0.80433,2485.2,2484.9,7.67741]
[1750910697551,3.2078,2485.3,2484.9,7.67741]
[1750910697552,4.0121,2485.3,2485.0,0.80438]
[1750910697754,3.2078,2485.3,2485.1,0.80433]
[1750910698044,3.2078,2485.3,2485.2,0.80432]
[1750910699047,3.2078,2485.3,2485.2,5.80432]
[1750910700147,3.2078,2485.6,2485.2,5.0]
[1750910700346,3.2078,2485.6,2485.1,3.44623]
[1750910700347,3.2078,2485.6,2485.5,0.80422]
[1750910700650,4.01186,2486.0,2485.7,0.80414]
[1750910700849,4.01186,2486.0,2485.8,6.871]
[1750910701149,4.01186,2486.0,2485.7,6.871]
[1750910701150,3.2078,2486.0,2485.7,6.871]
[1750910701350,4.01188,2486.0,2485.7,6.871]
[1750910701552,4.01188,2486.0,2485.7,7.67515]
[1750910701750,4.01188,2486.0,2485.4,26.9324]
[1750910701751,3.2078,2486.0,2485.4,1.4354]
[1750910701951,4.01199,2485.6,2485.5,6.871]
[1750910702151,3.2078,2485.6,2485.5,6.871]
[1750910702341,0.80423,2485.5,2485.2,0.6526]
[1750910702547,4.012,2485.6,2485.3,0.80428]
[1750910702754,4.012,2485.6,2485.4,6.871]
[1750910702956,3.2078,2485.6,2485.4,6.871]
[1750910703251,3.2078,2485.9,2485.8,0.80411]
[1750910703452,3.2078,2485.9,2485.7,0.80414]
[1750910703646,4.0119,2485.9,2485.6,0.80417]
[1750910704155,3.2078,2485.9,2485.7,7.67514]
[1750910705553,3.2078,2485.9,2485.8,0.80412]
[1750910706459,3.2078,2485.9,2485.5,0.6775]
[1750910706653,3.2078,2485.6,2485.2,0.6526]
[1750910706959,3.2078,2485.6,2485.5,0.80422]
[1750910707158,3.2078,2485.6,2485.2,0.6526]
[1750910707351,4.01201,2485.6,2485.3,7.67427]
[1750910707551,3.2078,2485.6,2485.5,0.80422]
[1750910707859,3.2078,2485.9,2485.5,7.67422]
[1750910708062,4.5853,2486.2,2486.1,0.80403]
[1750910708248,5.38931,2486.2,2486.0,7.67405]
[1750910708449,4.5853,2486.2,2486.0,7.67405]
[1750910708655,4.5853,2486.2,2486.1,0.80403]
[1750910709162,4.5853,2486.2,2486.0,6.87]
[1750910709356,5.8883,2486.2,2486.0,6.87]
[1750910709562,6.69231,2486.2,2486.0,6.87]
[1750910709759,4.5853,2486.2,2486.1,0.80403]
[1750910710062,3.8772,2486.2,2486.1,0.80403]
[1750910710260,3.8772,2486.2,2486.1,7.67303]
[1750910710459,3.2078,2486.2,2486.1,7.67303]
[1750910710756,3.2078,2486.6,2486.1,7.67303]
[1750910710959,3.2078,2486.6,2486.2,1.412]
[1750910711153,3.2078,2486.6,2486.5,0.8039]
[1750910711961,3.2078,2486.6,2486.4,0.8039]
[1750910712160,4.6427,2486.6,2486.5,0.8039]
[1750910712457,3.2078,2486.6,2486.5,0.8039]
[1750910712863,3.2078,2486.6,2486.4,0.80391]
[1750910713163,3.2078,2486.6,2486.4,7.67193]
[1750910713355,3.2078,2486.6,2486.5,0.8039]
[1750910713755,3.2078,2486.6,2486.4,7.67192]
[1750910713964,4.01168,2486.6,2486.4,7.67192]
[1750910714366,3.2078,2486.6,2486.5,0.8039]
[1750910714568,5.18890108,2486.6,2486.4,7.67192]
[1750910714758,3.2078,2486.6,2486.4,7.67192]
[1750910715061,3.2078,2486.6,2486.5,0.8039]
[1750910715364,4.38515658,2486.6,2486.5,0.8039]
[1750910716864,4.01151,2487.1,2486.9,0.80374]
[1750910717068,1.18026405,2487.0,2486.9,0.80377]
[1750910718661,1.18026405,2487.0,2486.8,7.67178]
[1750910718857,4.01152,2487.1,2486.8,7.67178]
[1750910718858,1.18026405,2486.9,2486.8,6.867]
[1750910719061,0.80384,2486.7,2486.5,0.80388]
[1750910719374,5.37422,2486.8,2486.6,6.867]
[1750910719568,1.18120622,2486.7,2486.6,6.867]
[1750910719762,1.18120622,2486.7,2486.6,7.67086]
[1750910720163,1.98503622,2486.7,2486.6,6.867]
[1750910720568,1.18120622,2486.7,2486.2,46.341]
[1750910720769,3.2078,2486.5,2486.4,0.80392]
[1750910720968,4.38900622,2486.5,2486.4,0.80392]
[1750910721873,4.38900622,2486.5,2486.4,0.80393]
[1750910722173,5.19290622,2486.5,2486.3,7.67095]
[1750910722374,1.18120622,2486.4,2486.3,7.67095]
[1750910722668,0.80396,2486.3,2486.2,46.341]
[1750910722865,3.37426622,2486.3,2486.2,6.829]
[1750910724268,0.804,2486.2,2486.0,0.80405]
[1750910724466,0.804,2486.2,2485.9,0.80407]
[1750910724673,0.804,2486.2,2486.0,6.829]
[1750910724674,1.98767698,2486.1,2486.0,6.829]
[1750910725072,1.98767698,2486.1,2485.9,0.80409]
[1750910725273,0.80403,2486.1,2486.0,6.828]
[1750910725574,1.98818107,2486.1,2486.0,6.828]
[1750910725976,1.18415107,2486.1,2485.7,0.7078]
[1750910726179,4.01191,2485.9,2485.8,6.828]
[1750910726376,5.19606107,2485.9,2485.8,6.828]
[1750910726774,4.39195107,2485.9,2485.8,6.828]
[1750910726975,5.19604107,2485.9,2485.8,6.828]
[1750910727781,4.39195107,2485.9,2485.5,47.1382]
[1750910727977,1.98830107,2485.8,2485.7,6.829]
[1750910728880,1.18415107,2485.8,2485.7,6.829]
[1750910729079,1.18415107,2485.8,2485.7,7.63316]
[1750910729782,1.98827107,2485.8,2485.7,6.829]
[1750910730581,0.80419,2485.6,2485.5,46.334]
[1750910730875,4.01199,2485.6,2485.5,6.829]
[1750910731081,9.39195107,2485.6,2485.1,6.829]
[1750910731277,4.01212,2485.2,2485.1,6.829]
[1750910731481,5.19627107,2485.2,2485.1,6.829]
[1750910731777,4.39195107,2485.2,2484.5,3.8949]
[1750910731984,0.80445,2484.8,2484.7,6.829]
[1750910732284,1.18415107,2484.8,2484.7,6.829]
[1750910732473,1.98860107,2484.8,2484.7,6.829]
[1750910734079,1.18415107,2484.8,2484.7,7.63348]
[1750910734477,3.2078,2485.2,2485.0,0.80437]
[1750910734780,1.18488466,2485.1,2485.0,0.80437]
[1750910734983,3.2078,2485.2,2485.1,0.80435]
[1750910735176,3.2078,2485.2,2485.1,7.63435]
[1750910735485,3.2078,2485.5,2485.1,12.63435]
[1750910735684,3.2078,2485.5,2485.4,6.02063422]
[1750910735884,4.39259944,2485.5,2485.4,6.02063422]
[1750910736084,4.39259944,2485.5,2485.4,0.80425]
[1750910736577,1.18479944,2485.5,2485.4,0.80425]
[1750910737082,4.01194,2485.8,2485.5,0.80421]
[1750910737385,1.18435668,2485.7,2485.5,6.83]
[1750910737678,1.18435668,2485.6,2485.5,6.83]
[1750910738086,1.18435668,2485.6,2485.5,7.63422]
[1750910738383,3.2078,2485.8,2485.5,6.83]
[1750910738583,1.18410232,2485.7,2485.5,6.83]
[1750910738771,1.98827232,2485.7,2485.4,6.83]
[1750910738975,1.18410232,2485.6,2485.4,7.63423]
[1750910739384,1.18410232,2485.6,2485.4,0.80423]
[1750910739584,1.18410232,2485.6,2485.4,7.63424]
[1750910739785,1.98829232,2485.6,2485.4,7.63424]
[1750910739985,0.80419,2485.6,2485.4,7.63424]
[1750910740180,0.80422,2485.5,2485.4,6.83]
[1750910740388,4.01202,2485.5,2485.4,6.83]
[1750910740682,3.2078,2485.5,2485.4,7.63425]
[1750910742082,8.2078,2485.5,2485.4,0.80425]
[1750910742287,4.38995248,2485.5,2484.9,6.831]
[1750910742485,4.01204,2485.5,2485.0,5.21638422]
[1750910742687,4.01204,2485.5,2485.0,6.63968422]
[1750910742986,0.80426,2485.4,2485.1,0.80433]
[1750910744590,3.2078,2485.5,2485.0,7.44405422]
[1750910744781,3.2078,2485.5,2485.0,0.80437]
[1750910745088,0.80432,2485.2,2485.0,7.63537]
[1750910745994,0.80435,2485.1,2484.9,0.80439]
[1750910746183,3.2078,2485.2,2484.6,1.4196]
[1750910746381,0.6783,2485.3,2484.6,1.4196]
[1750910746382,0.80446,2484.8,2484.6,6.831]
[1750910746586,0.80448,2484.7,2484.6,6.831]
[1750910748286,0.80447,2484.8,2484.6,6.831]
[1750910748587,0.80448,2484.7,2484.6,6.831]
[1750910749278,3.2078,2484.9,2484.6,12.04738422]
[1750910749482,3.2078,2484.9,2484.7,0.80446]
[1750910749682,3.2078,2484.9,2484.7,2.11186]
[1750910749991,4.01222,2484.9,2484.7,2.11186]
[1750910751586,0.80445,2484.8,2484.6,12.85187422]
[1750910752792,3.2078,2484.9,2484.7,0.80445]
[1750910752994,3.2078,2484.9,2484.6,13.40988422]
[1750910753292,4.01223,2484.9,2484.7,2.16697]
[1750910753484,3.2078,2484.9,2484.7,1.3625]
[1750910753685,4.01223,2484.9,2484.7,2.16696]
[1750910753992,4.01223,2484.9,2484.7,1.3625]
[1750910755089,4.01223,2484.9,2484.6,12.85187422]
[1750910755489,3.2078,2484.9,2484.8,0.80445]
[1750910757192,3.2078,2484.9,2484.8,31.26145]
[1750910757394,3.2078,2485.3,2485.2,0.80429]
[1750910757594,3.2078,2485.3,2485.2,7.68129]
[1750910758093,3.2078,2485.3,2485.2,10.41719]
[1750910759198,3.2078,2485.6,2485.5,0.80419]
[1750910759403,4.39554018,2485.6,2485.5,0.80419]
[1750910759787,3.2078,2485.6,2485.5,0.80419]
[1750910760093,3.2078,2485.6,2485.5,2.14779]
[1750910760893,4.01201,2485.6,2485.5,6.877]
[1750910761797,4.01201,2485.6,2485.3,7.68126]
[1750910762302,4.01201,2485.6,2485.4,0.80424]
[1750910762492,4.01201,2485.6,2485.3,7.68126]
[1750910763098,4.01201,2485.6,2485.4,0.80425]
[1750910763399,4.01201,2485.6,2485.3,6.877]
[1750910763400,3.2078,2485.6,2485.5,0.80422]
[1750910764298,0.80414,2485.8,2485.5,0.8042]
[1750910764495,0.80414,2485.8,2485.6,0.80418]
[1750910764896,3.9132,2485.9,2485.4,6.58578422]
[1750910765106,3.9132,2485.9,2485.5,0.8042]
[1750910765107,0.80416,2485.7,2485.5,0.8042]
[1750910765904,3.2078,2485.6,2485.5,0.8042]
[1750910767698,3.2078,2485.6,2485.5,2.2207]
[1750910769305,3.2078,2485.6,2485.5,0.8042]
[1750910769509,3.2078,2485.6,2485.5,7.6812]
[1750910772103,3.2078,2485.6,2485.5,12.89758422]
[1750910773005,3.2078,2485.6,2485.5,7.6812]
[1750910774912,4.01199,2485.6,2485.5,6.877]
[1750910775804,0.80423,2485.5,2485.3,2.21007]
[1750910776001,0.80423,2485.5,2485.4,6.876]
[1750910776912,0.80423,2485.5,2485.4,7.68025]
[1750910777708,3.2078,2485.6,2485.4,0.80425]
[1750910778008,4.012,2485.6,2485.4,0.80425]
[1750910778213,4.012,2485.6,2485.3,0.80426]
[1750910778214,0.80423,2485.5,2485.3,0.80426]
[1750910779014,1.49573,2485.5,2485.3,0.80426]
[1750910779314,1.49573,2485.5,2485.4,0.80425]
[1750910779513,0.6915,2485.5,2485.4,0.80425]
[1750910781014,1.49572,2485.5,2485.3,0.80426]
[1750910782312,3.2078,2485.6,2485.5,0.80422]
[1750910782515,4.40791791,2485.6,2485.5,0.80422]
[1750910782809,3.2078,2485.6,2485.5,0.80422]
[1750910783013,4.01199,2485.6,2485.5,0.80422]
[1750910783217,3.2078,2485.6,2485.5,0.80422]
[1750910784017,4.01201,2485.6,2485.4,12.78862422]
[1750910784401,4.01201,2485.6,2485.5,0.80422]
[1750910784711,4.40975741,2485.6,2485.5,0.80422]
[1750910785017,5.21394741,2485.6,2485.5,0.80422]
[1750910785216,5.21394741,2485.6,2485.4,12.78861422]
[1750910785417,2.00617741,2485.5,2485.4,12.78861422]
[1750910785920,1.20195741,2485.5,2485.4,12.78861422]
[1750910786218,1.20195741,2485.5,2485.4,10.13552062]
[1750910788117,2.00617741,2485.5,2485.4,10.13552062]
[1750910789017,1.20195741,2485.5,2485.4,10.13552062]
[1750910789720,3.2078,2485.6,2485.5,0.80422]
[1750910789914,4.41221792,2485.6,2485.5,2.22042]
[1750910790114,4.41221792,2485.6,2485.5,2.88782]
[1750910791714,1.20441792,2485.6,2485.5,2.88782]
[1750910794613,0.39780792,2485.6,2485.5,7.88782]
[1750910794816,3.2078,2485.8,2485.7,0.80416]
[1750910795020,3.2078,2486.1,2486.0,0.80406]
[1750910795213,3.2078,2486.1,2486.0,10.13435062]
[1750910797212,3.2078,2486.4,2486.0,10.13435062]
[1750910797519,3.2078,2486.4,2486.3,3.36725062]
[1750910798424,3.2078,2486.8,2486.4,0.80393]
[1750910798723,3.2078,2486.8,2486.7,3.36712062]
[1750910799617,3.2078,2486.8,2486.7,4.80352062]
[1750910803226,3.2078,2486.8,2486.7,10.13212062]
[1750910804023,5.45482,2487.1,2486.8,0.80379]
[1750910804221,5.45482,2487.1,2486.9,2.56329062]
[1750910804426,3.2078,2487.1,2486.9,2.56329062]
[1750910804627,3.2078,2487.1,2487.0,0.80374]
[1750910809034,4.72913,2487.4,2486.9,2.56329062]
[1750910809250,0.7177,2487.4,2487.3,0.80364]
[1750910809535,0.665,2487.6,2487.5,0.80357]
[1750910809735,0.665,2487.6,2487.5,3.36686062]
[1750910810232,0.665,2487.6,2487.5,0.80357]
[1750910811233,0.665,2487.6,2487.0,2.00929]
[1750910811234,0.80362,2487.4,2487.2,0.80366]
[1750910811439,0.665,2487.6,2486.9,46.328]
[1750910811440,0.665,2487.6,2487.5,0.80357]
[1750910812245,0.6892,2487.7,2487.6,0.80354]
[1750910812842,0.6892,2487.7,2487.5,0.80356]
[1750910813044,2.056,2487.7,2487.6,0.80354]
[1750910814540,3.2078,2487.8,2487.7,0.80351]
[1750910815147,3.2078,2488.1,2488.0,0.80339]
[1750910816846,3.2078,2488.5,2488.4,0.80328]
[1750910817032,3.2078,2488.5,2488.4,12.68708753]
[1750910817843,0.7162,2488.8,2488.7,0.80319]
[1750910818046,0.7162,2488.8,2488.7,6.01399753]
[1750910820446,0.7162,2488.8,2488.7,5.21080753]
[1750910820646,0.80322,2488.6,2488.5,0.7124]
[1750910820945,0.80322,2488.6,2488.5,6.67]
[1750910821941,0.80325,2488.5,2488.4,5.21080753]
[1750910822148,2.20526,2488.5,2488.2,7.47333]
[1750910822343,1.402,2488.5,2488.3,6.01410753]
[1750910822547,3.2078,2488.6,2488.4,0.80328]
[1750910823349,3.2078,2488.6,2488.5,0.80325]
[1750910823934,3.2078,2488.6,2488.4,0.80326]
[1750910824346,3.2078,2488.6,2488.5,0.80325]
[1750910824544,0.7156,2488.7,2488.6,0.80322]
[1750910824741,0.7156,2488.7,2488.6,12.68402753]
[1750910825843,0.7156,2488.7,2488.6,11.88080753]
[1750910826151,0.7156,2488.7,2488.6,12.68402753]
[1750910826851,3.2078,2489.2,2488.6,11.88080753]
[1750910827051,4.5955,2489.2,2489.1,5.21080753]
[1750910827248,5.78018116,2489.2,2489.0,6.67]
[1750910827554,4.5955,2489.2,2489.0,6.67]
[1750910827750,4.5955,2489.2,2489.0,7.47306]
[1750910828047,4.5955,2489.2,2489.1,0.80306]
[1750910828346,5.78050604,2489.2,2489.1,0.80306]
[1750910828753,5.78050604,2489.2,2489.0,7.47307]
[1750910828955,5.39853,2489.2,2488.9,0.80311]
[1750910829154,5.39853,2489.2,2489.0,6.67]
[1750910829155,2.62042514,2489.1,2489.0,6.67]
[1750910829450,3.42348514,2489.1,2488.9,6.67]
[1750910829751,1.18537494,2489.0,2488.8,5.21080753]
[1750910829953,1.435,2489.1,2489.0,0.80309]
[1750910830251,4.5955,2489.2,2489.0,0.80309]
[1750910830654,4.5955,2489.2,2489.1,0.80306]
[1750910830852,5.78074782,2489.2,2489.1,0.80306]
[1750910831952,5.78074782,2489.2,2489.1,7.47206]
[1750910832153,5.08844782,2489.2,2489.1,12.68286753]
[1750910832353,3.9032,2489.2,2489.1,12.68286753]
[1750910832853,3.2078,2489.2,2489.1,12.68286753]
[1750910833454,0.6794,2489.8,2489.2,2.00757]
[1750910833658,0.6794,2489.8,2489.4,5.21080753]
[1750910833952,0.80293,2489.5,2489.4,5.21080753]
[1750910834158,0.80293,2489.5,2489.2,6.669]
[1750910834159,0.80299,2489.4,2489.2,6.669]
[1750910834353,2.67965292,2489.3,2489.2,6.669]
[1750910834652,2.57066292,2489.3,2489.2,7.47203]
[1750910835151,2.57066292,2489.3,2489.2,6.669]
[1750910835357,3.37365292,2489.3,2489.2,6.669]
[1750910835658,4.72765292,2489.3,2489.2,6.669]
[1750910837362,0.80307,2489.1,2488.8,8.41860753]
[1750910837562,1.18836292,2489.0,2488.9,6.668]
[1750910837761,1.18836292,2489.0,2488.9,7.47112]
[1750910838959,1.99142292,2489.1,2488.9,7.47112]
[1750910839253,1.99145292,2489.0,2488.9,6.668]
[1750910839456,0.80312,2488.9,2488.8,6.668]
[1750910839760,1.99148292,2488.9,2488.8,6.668]
[1750910840059,1.18836292,2488.9,2488.8,7.47115]
[1750910841458,1.99148292,2488.9,2488.8,6.668]
[1750910841659,1.18836292,2488.9,2488.8,6.668]
[1750910841954,1.18836292,2488.9,2488.8,7.47115]
[1750910842256,1.18836292,2488.9,2488.8,12.68195753]
[1750910842453,3.2078,2489.1,2488.8,11.87880753]
[1750910842653,1.19335273,2489.0,2488.8,11.87880753]
[1750910842853,1.19335273,2488.9,2488.8,1.51034]
[1750910843054,1.19335273,2488.9,2488.8,8.17834]
[1750910844956,1.19335273,2488.9,2488.8,13.17834]
[1750910845152,1.19335273,2488.9,2488.8,8.17834]
[1750910845748,1.99647273,2488.9,2488.8,6.643]
[1750910845952,1.99647273,2488.9,2488.6,5.21080753]
[1750910845953,1.19335273,2488.9,2488.6,6.643]
[1750910846154,0.80319,2488.7,2488.6,6.643]
[1750910846463,1.99654273,2488.7,2488.6,6.643]
[1750910847959,0.80325,2488.5,2488.4,6.643]
[1750910848465,1.99660273,2488.5,2488.4,6.643]
[1750910848658,2.67360273,2488.5,2488.4,6.643]
[1750910849864,1.87035273,2488.5,2488.4,6.643]
[1750910850259,1.87035273,2488.5,2488.4,7.44628]
[1750910850863,1.19335273,2488.5,2488.4,7.44628]
[1750910853660,1.19335273,2488.5,2488.4,6.643]
[1750910853661,1.99660273,2488.5,2488.4,6.643]
[1750910853965,5.20440273,2488.5,2488.4,6.643]
[1750910854164,9.40115273,2488.5,2488.0,49.4938]
[1750910854468,1.90155273,2488.4,2488.2,0.80333]
[1750910854656,0.7082,2488.4,2488.2,0.80333]
[1750910854863,4.5944,2488.8,2488.2,0.6746]
[1750910855164,4.5944,2488.8,2488.6,0.8032]
[1750910855165,1.19664733,2488.7,2488.6,0.8032]
[1750910855356,1.99983733,2488.7,2488.5,0.80323]
[1750910855558,1.19664733,2488.6,2488.5,0.80323]
[1750910855955,1.19664733,2488.6,2488.4,6.643]
[1750910856171,1.99989733,2488.5,2488.4,6.643]
[1750910856764,0.80336,2488.2,2488.0,47.08939]
[1750910856964,0.80336,2488.2,2488.1,6.643]
[1750910857656,1.19487373,2488.3,2488.1,6.643]
[1750910857860,0.6683,2488.6,2488.1,6.643]
[1750910858062,0.80329,2488.4,2488.2,0.80333]
[1750910858260,0.6683,2488.6,2488.2,1.3357]
[1750910858466,1.19546316,2488.5,2488.4,0.80327]
[1750910858669,0.80328,2488.4,2488.2,2.13902]
[1750910858869,3.2078,2488.5,2488.1,6.643]
[1750910859076,0.80335,2488.2,2488.1,6.643]
[1750910859267,0.7086,2488.4,2488.0,6.643]
[1750910859570,0.80338,2488.1,2488.0,6.643]
[1750910860472,1.49578,2488.1,2488.0,6.643]
[1750910862465,2.68788715,2488.1,2488.0,6.643]
[1750910862672,2.68788715,2488.1,2487.7,6.644]
[1750910862673,0.80348,2487.8,2487.7,6.644]
[1750910863068,1.99555998,2487.8,2487.7,6.644]
[1750910863371,2.90068,2487.8,2487.7,6.644]
[1750910863568,0.80357,2487.5,2487.4,7.3245]
[1750910864268,0.80357,2487.5,2487.4,6.644]
[1750910865173,0.7157,2487.5,2487.1,7.3622]
[1750910865378,0.80367,2487.3,2487.0,6.644]
[1750910866075,0.80367,2487.3,2487.0,7.44772]
[1750910866276,2.1432,2487.5,2487.0,6.644]
[1750910866473,0.8037,2487.1,2487.0,6.644]
[1750910867477,1.46298,2487.2,2487.0,7.44772]
[1750910867677,0.80368,2487.2,2487.0,7.44772]
[1750910867879,0.80368,2487.2,2487.0,6.644]
[1750910868177,0.80368,2487.2,2487.0,7.44774]
[1750910868567,0.8037,2487.1,2487.0,6.644]
[1750910869170,0.6713,2487.1,2486.7,3.56712]
[1750910869477,3.91,2487.0,2486.7,8.83812]
[1750910869878,0.80378,2486.9,2486.7,8.83812]
[1750910870676,0.8038,2486.8,2486.7,6.646]
[1750910871185,0.8039,2486.5,2486.4,0.6722]
[1750910871880,0.80382,2486.8,2486.5,0.80388]
[1750910872083,0.80383,2486.7,2486.5,0.80388]
[1750910872479,0.80382,2486.8,2486.6,0.80386]
[1750910872978,3.2078,2486.7,2486.4,0.6722]
[1750910873283,0.80393,2486.5,2486.3,6.646]
[1750910873586,0.80393,2486.4,2486.3,6.646]
[1750910873780,3.2078,2487.0,2486.3,11.85680753]
[1750910873975,3.2078,2487.0,2486.6,5.21080753]
[1750910874282,3.2078,2487.0,2486.9,0.80377]
[1750910874480,3.2078,2487.0,2486.7,8.0625]
[1750910874481,3.2078,2487.0,2486.8,0.80378]
[1750910874676,0.8038,2486.8,2486.7,8.0625]
[1750910874983,0.80385,2486.7,2486.4,0.80393]
[1750910875185,3.2078,2486.6,2486.3,7.44194]
[1750910875483,0.80391,2486.5,2486.3,7.44194]
[1750910875682,4.01169,2486.6,2486.3,7.44194]
[1750910875885,4.01169,2486.6,2486.4,0.80392]
[1750910876184,0.8039,2486.5,2486.3,7.44194]
[1750910876475,0.80393,2486.4,2486.3,6.638]
[1750910878681,0.80398,2486.3,2486.1,0.80402]
[1750910879080,0.80395,2486.4,2486.1,0.80402]
[1750910879286,0.80395,2486.4,2486.2,0.80399]
[1750910879988,0.80395,2486.4,2486.1,2.2179]
[1750910880189,0.80395,2486.4,2486.2,0.80399]
[1750910880490,2.01001,2486.2,2485.3,6.639]
[1750910880781,3.2078,2486.3,2485.3,6.639]
[1750910880782,0.80425,2485.4,2485.3,6.639]
[1750910880986,0.80435,2485.1,2485.0,7.3158]
[1750910881184,4.01215,2485.1,2485.0,0.6768]
[1750910881379,0.8044,2485.0,2484.8,7.291]
[1750910881582,4.01217,2485.1,2484.8,7.291]
[1750910881775,0.80441,2484.9,2484.8,8.5938]
[1750910882388,0.8044,2485.0,2484.8,8.5938]
[1750910882890,0.80441,2484.9,2484.8,6.64]
[1750910883991,1.4718,2485.0,2484.8,6.64]
[1750910884177,0.80441,2484.9,2484.5,7.44551]
[1750910884381,3.2078,2484.8,2484.5,8.0816]
[1750910884576,4.01226,2484.8,2484.5,8.88612]
[1750910885877,3.2078,2484.8,2484.5,8.88612]
[1750910886491,0.80444,2484.9,2484.6,0.80451]
[1750910886689,3.2078,2484.8,2484.5,8.88613]
[1750910886991,4.01225,2484.8,2484.6,0.80451]
[1750910887181,3.2078,2484.8,2484.6,0.80451]
[1750910887381,4.01225,2484.8,2484.6,0.80451]
[1750910887581,4.01225,2484.8,2484.5,8.88613]
[1750910887792,3.2078,2484.8,2484.5,8.0816]
[1750910887989,3.2078,2484.8,2484.6,0.8045]
[1750910888192,4.01226,2484.8,2484.5,8.88613]
[1750910888388,0.80449,2484.7,2484.5,8.88613]
[1750910888593,0.80449,2484.7,2484.5,8.0816]
[1750910888792,0.80449,2484.7,2484.5,8.88614]
[1750910888995,0.80449,2484.7,2484.5,8.0816]
[1750910889206,0.80449,2484.7,2484.5,7.44554]
[1750910889406,4.01227,2484.8,2484.6,0.80451]
[1750910890599,3.2078,2484.8,2484.2,10.65543]
[1750910890803,3.2078,2484.5,2483.6,3.2078]
[1750910891010,5.21080753,2484.6,2483.1,0.39708793]
[1750910891011,3.2078,2483.9,2483.1,0.39708793]
[1750910891304,3.2078,2483.4,2483.1,0.39708793]
[1750910891603,3.2078,2483.4,2482.8,0.6922]
[1750910891604,4.01272,2483.4,2483.0,0.805]
[1750910892008,3.2078,2483.1,2483.0,0.805]
[1750910892898,10.65562,2483.7,2482.9,1.3154]
[1750910893100,11.96382,2483.7,2483.3,0.80493]
[1750910893504,11.159,2483.7,2483.3,0.80493]
[1750910893700,9.8508,2483.7,2483.3,0.80493]
[1750910893895,10.6556,2483.7,2483.4,0.80489]
[1750910894097,10.6556,2483.7,2483.4,0.8049]
[1750910894301,9.8508,2483.7,2483.4,0.8049]
[1750910894501,3.2078,2483.7,2483.3,0.80491]
[1750910894706,3.2078,2483.7,2483.1,1.4142]
[1750910895006,3.2078,2483.7,2483.6,0.80484]
[1750910895600,3.2078,2483.7,2483.5,1.3567]
[1750910895903,3.2078,2483.7,2483.4,6.646]
[1750910896105,4.01262,2483.7,2483.4,6.646]
[1750910896298,3.2078,2483.7,2483.4,6.646]
[1750910896498,3.2078,2483.7,2483.5,0.80487]
[1750910896999,4.01261,2483.7,2483.3,0.80491]
[1750910897200,6.16501,2483.7,2483.3,0.80491]
[1750910897401,5.3602,2483.7,2483.2,6.646]
[1750910897595,3.9229,2483.7,2483.3,1.4104]
[1750910897798,4.72771,2483.7,2483.4,0.80488]
[1750910898009,4.72771,2483.7,2483.3,2.21532]
[1750910898308,3.9229,2483.7,2483.2,7.45095]
[1750910898503,3.2078,2483.4,2483.2,7.45095]
[1750910898706,3.2078,2483.4,2483.2,6.646]
[1750910899108,3.2078,2483.4,2483.3,0.80493]
[1750910900310,3.2078,2483.4,2483.3,2.14833]
[1750910900713,3.2078,2483.4,2483.3,0.80493]
[1750910901207,3.2078,2483.4,2483.2,0.80497]
[1750910901412,3.2078,2483.4,2483.3,0.80493]
[1750910905914,3.2078,2483.8,2483.2,3.42928]
[1750910906119,0.80485,2483.6,2483.4,0.80488]
[1750910906419,4.01259,2483.8,2483.6,0.80484]
[1750910906619,3.2078,2484.1,2483.5,6.64]
[1750910906820,3.2078,2484.1,2484.0,0.80471]
[1750910907019,4.38825956,2484.1,2484.0,0.80471]
[1750910907516,1.18045956,2484.1,2484.0,7.44471]
[1750910908116,1.18045956,2484.1,2483.8,1.4378]
[1750910908311,1.18276953,2484.0,2483.9,6.64]
[1750910908512,1.18276953,2484.0,2483.9,7.44474]
[1750910908718,1.98747953,2484.0,2483.9,6.64]
[1750910909912,1.18276953,2484.0,2483.9,7.44474]
[1750910910114,1.18276953,2484.0,2483.9,6.64]
[1750910910915,1.98747953,2484.0,2483.9,6.64]
[1750910911226,1.18276953,2484.0,2483.9,6.64]
[1750910911614,1.98747953,2484.0,2483.9,6.64]
[1750910911811,1.18276953,2484.0,2483.9,6.64]
[1750910913121,1.98747953,2484.0,2483.9,6.64]
[1750910913719,1.98747953,2484.0,2483.6,6.64]
[1750910913720,1.18276953,2484.0,2483.6,6.64]
[1750910913919,0.80485,2483.6,2483.5,6.64]
[1750910914522,1.98761953,2483.6,2483.5,6.64]
[1750910914819,1.18276953,2483.6,2483.5,6.64]
[1750910915214,1.18276953,2483.6,2483.5,7.44487]
[1750910916319,1.98760953,2483.6,2483.5,6.64]
[1750910917017,1.18276953,2483.6,2483.5,7.44487]
[1750910917212,3.2078,2483.8,2483.6,0.80484]
[1750910917523,1.18850552,2483.7,2483.6,2.17784]
[1750910918616,1.99331552,2483.7,2483.5,7.44487]
[1750910918815,1.18850552,2483.6,2483.5,6.64]
[1750910919015,1.18850552,2483.6,2483.5,7.44487]
[1750910919320,1.19006989,2483.7,2483.5,16.85080753]